Cogmind - Beta 10.2 @@@ ROGUE MODE // 2020.11.25 @ 03:58:15 // Halloween2020/ForbiddenLore Player: Luigi Panache Result: Self-destructed Performance ------------- Evolutions (4) 2000 Regions Visited (7) 1400 Robots Destroyed (29) 145 Value Destroyed (1046) 1046 Prototype IDs (2) 40 Alien Tech Used (0) 0 Bonus (0) 0 TOTAL SCORE: 4631 Bonus ------- None Cogmind --------- Core Integrity 635/850 Matter 290/300 Energy 90/100 System Corruption 0% Temperature Cool (12) Movement Treading (170) Location -6/Factory Parts ------- > --- POWER (2) -------- (None) > --- PROPULSION (6) --- Armored Treads > --- UTILITY (5) ------ Improved Thermal Generator Visual Processing Unit Hacking Suite > --- WEAPON (2) ------- (None) > --- INVENTORY (4) ---- Medium Laser Particle Gun Improved Datajack Katana Peak State ------------ > --- POWER ------------ Heavy Ion Engine > --- PROPULSION ------- Armored Treads Armored Treads Improved Hover Unit Gravmag System Xenon Bombardment Thruster > --- UTILITY ---------- Visual Processing Unit Hacking Suite > --- WEAPON ----------- Katana > --- INVENTORY -------- Medium Laser Particle Gun Improved Datajack [Rating: 27] Favorites ----------- Power Heavy Ion Engine Engine Heavy Ion Engine Propulsion Armored Treads Treads Armored Treads Leg Aluminum Leg Wheel Wheel Hover Unit Improved Hover Unit Flight Unit Xenon Bombardment Thruster Utility Visual Processing Unit Device Sensor Array Storage Large Storage Unit Processor Visual Processing Unit Hackware Hacking Suite Weapon Katana Energy Gun Small Laser Ballistic Gun Assault Rifle Launcher EMP Blaster Special Weapon Remote Datajack Slashing Weapon Katana Special Melee Weapon Improved Datajack Build | -11 -10 -9 -8 -7 -7 -7 -6 ------- Run | Scr Mat Mat Mat Fac Low Low Fac Slots Evolved 8 | . . 2 2 2 . . 2 Power 1 | . . . 1 . . . . Propulsion 4 | . . 1 1 1 . . 1 Utility 3 | . . 1 . 1 . . 1 Weapon . | . . . . . . . . Parts Attached 45 | 6 4 1 18 13 . . 3 Power 4 | 1 . . 3 . . . . Engine 4 | 1 . . 3 . . . . Core . | . . . . . . . . Reactor . | . . . . . . . . Propulsion 20 | 2 2 . 6 9 . . 1 Treads 6 | . 2 . 1 3 . . . Leg 2 | 2 . . . . . . . Wheel 1 | . . . . 1 . . . Hover 5 | . . . 2 2 . . 1 Flight 6 | . . . 3 3 . . . Utility 6 | 1 1 1 2 . . . 1 Device 2 | . 1 . . . . . 1 Storage 2 | 1 . . 1 . . . . Processor 1 | . . 1 . . . . . Hackware 1 | . . . 1 . . . . Protection . | . . . . . . . . Artifact . | . . . . . . . . Weapon 15 | 2 1 . 7 4 . . 1 Energy Gun 4 | 1 . . 3 . . . . Energy Cannon . | . . . . . . . . Ballistic Gun 4 | 1 1 . 2 . . . . Ballistic Cannon . | . . . . . . . . Launcher 1 | . . . 1 . . . . Special Weapon 1 | . . . . . . . 1 Impact Weapon . | . . . . . . . . Slashing Weapon 3 | . . . 1 2 . . . Piercing Weapon . | . . . . . . . . Special Melee Weapon 2 | . . . . 2 . . . Unidentified Prototypes 2 | . . . 2 . . . . Parts Lost 16 | . . . 9 1 1 . 5 Power 3 | . . . 2 . . . 1 Propulsion 9 | . . . 4 1 1 . 3 Utility . | . . . . . . . . Weapon 4 | . . . 3 . . . 1 Highest Loss Streak 5 | . . . 4 1 1 . 5 Average Slot Usage (%) 69 | . 92 83 74 60 62 61 47 Engine 10 | . 14 11 13 7 7 7 5 Treads 11 | . 13 22 8 4 15 15 12 Leg 1 | . 14 . . . . . . Wheel 1 | . . . . 5 . . . Hover 5 | . . . 6 7 8 7 5 Flight 5 | . . . 1 15 7 7 4 Device 2 | . 6 11 2 . . . . Storage 5 | . 14 11 8 . . . . Processor 6 | . . 6 9 7 7 7 6 Hackware 5 | . . . 6 7 7 7 6 Energy Gun 5 | . 14 11 7 . . . . Ballistic Gun 3 | . 14 11 4 . . . . Slashing Weapon 3 | . . . 5 3 7 7 1 Naked Turns . | . . . . . . . . Heaviest Build 30 | 12 13 13 30 10 10 10 11 Greatest Support 60 | 20 40 40 40 60 40 8 8 Greatest Overweight (x) 9 | 2 . . 9 1 1 1 1 Average Overweight (x) . | . . . . . . 1 . Largest Inventory Capacity 10 | 6 6 6 10 4 4 4 4 Average Capacity 6 | 5 6 6 9 4 4 4 4 Most Carried 8 | 6 6 3 8 4 3 3 4 Average Carried 4 | 3 4 3 5 3 3 3 3 Final Capacity 6 | 6 6 6 4 4 4 4 4 Final Carried 6 | 6 3 3 4 3 3 3 4 Class Distribution -------------------- 100% | Mutant Dominant Class ---------------- Mutant | -10/Materials Mutant | -9/Materials Mutant | -8/Materials Mutant | -7/Factory Mutant | -7/Lower Caves Mutant | -7/Lower Caves Mutant | -6/Factory Resources | -11 -10 -9 -8 -7 -7 -7 -6 ----------- Run | Scr Mat Mat Mat Fac Low Low Fac Matter Collected 786 | 210 162 64 225 101 24 . . Remotely . | . . . . . . . . Salvage Created 1105 | . 272 240 348 202 43 . . Parts 75 | . 24 13 21 15 2 . . Haulers Intercepted 1 | . . . 1 . . . . Recyclers Shooed . | . . . . . . . . Parts Field Recycled . | . . . . . . . . Retrieved Matter . | . . . . . . . . Parts Self-Destructed 2 | . . . . . 2 . . Prevented . | . . . . . . . . Kills | -11 -10 -9 -8 -7 -7 -7 -6 ------- Run | Scr Mat Mat Mat Fac Low Low Fac Combat Hostiles Destroyed 27 | . 8 6 8 4 1 . . Melee 7 | . . . 2 4 1 . . Guns 19 | . 8 6 5 . . . . AOE 1 | . . . 1 . . . . Classes Destroyed 7 | . 3 1 2 1 . . . Hauler 1 | . . . 1 . . . . Watcher 1 | . 1 . . . . . . Swarmer 6 | . 3 . 3 . . . . Grunt 15 | . 5 5 2 3 . . . Sentry 3 | . . 1 2 . . . . Hunter 1 | . . . 1 . . . . Programmer 2 | . . . . 1 1 . . Best Kill Streak 5 | . 3 5 5 2 1 . . Combat Bots Only 5 | . 3 5 5 2 1 . . Max Kills in Single Turn 1 | . 1 1 1 1 1 . . Gunslinging . | . . . . . . . . Exploded 1 | . . . 1 . . . . Melee 1 | . . . 1 1 1 . . Uniques/NPCs Destroyed . | . . . . . . . . Combat | -11 -10 -9 -8 -7 -7 -7 -6 -------- Run | Scr Mat Mat Mat Fac Low Low Fac Damage Taken 2777 | . 216 233 1140 204 184 . 800 Core 612 | . 23 47 262 65 . . 215 Absorbed by Shields . | . . . . . . . . Core Remaining (%) 84 | 100 90 88 52 . . 90 . Volleys Fired 84 | . 24 18 41 . . . 1 Largest 2 | . 2 2 2 . . . 1 Hottest 65 | . 60 60 65 . . . 30 Shots Fired 137 | . 48 36 52 . . . 1 Gun 135 | . 48 36 51 . . . . Cannon . | . . . . . . . . Launcher 1 | . . . 1 . . . . Special 1 | . . . . . . . 1 Kinetic 60 | . 24 18 18 . . . . Thermal 75 | . 24 18 33 . . . . Explosive . | . . . . . . . . Electromagnetic 1 | . . . 1 . . . . Robot Hit Streak 10 | . 6 8 10 . . . . Robot Miss Streak 3 | . 3 2 3 . . . 1 Penetration Max 1 | . . . 1 . . . . Secondary Targets 2 | . 2 . . . . . . Max Gunslinging Chain 1 | . 1 . . . . . . Shots Hit Robots 112 | . 30 27 43 7 5 . . Core Hits 51 | . 15 12 17 5 2 . . Critical Hits 2 | . . . 1 1 . . . Critical Kills 2 | . . . 1 1 . . . Critical Parts Destroyed . | . . . . . . . . Melee Attacks 26 | . . . 11 9 6 . . Impact . | . . . . . . . . Slashing 26 | . . . 11 9 6 . . Piercing . | . . . . . . . . Sneak Attacks . | . . . . . . . . Combat Hostiles . | . . . . . . . . Follow-up Attacks . | . . . . . . . . Damage Inflicted 1965 | . 388 306 896 223 152 . . Guns 1315 | . 388 306 621 . . . . Cannons . | . . . . . . . . Explosions 65 | . . . 65 . . . . Melee 585 | . . . 210 223 152 . . Ramming . | . . . . . . . . Kinetic 617 | . 190 160 267 . . . . Thermal 698 | . 198 146 354 . . . . Explosive 49 | . . . 49 . . . . Electromagnetic 16 | . . . 16 . . . . Impact . | . . . . . . . . Slashing 585 | . . . 210 223 152 . . Piercing . | . . . . . . . . Highest Corruption . | . . . . . . . . Average Corruption . | . . . . . . . . Corruption Purged . | . . . . . . . . Overload Shots . | . . . . . . . . Overflow Damage 90 | . . . 90 . . . . Projectiles . | . . . . . . . . Explosions 82 | . . . 82 . . . . Melee 8 | . . . 8 . . . . Knockbacks . | . . . . . . . . Impact . | . . . . . . . . Kinetic . | . . . . . . . . Secondary . | . . . . . . . . Self-Inflicted Damage 113 | . . . 113 . . . . Shots 2 | . . . 2 . . . . Rammed . | . . . . . . . . Targets Rammed . | . . . . . . . . Kicked . | . . . . . . . . Crushed . | . . . . . . . . Highest Temperature 132 | . 30 6 132 . . . . Average Temperature 32 | . 18 3 46 . . . . Received Heat Transfer 579 | . 90 111 171 99 . . 108 Siege Activations . | . . . . . . . . Robots Corrupted . | . . . . . . . . Combat Hostiles . | . . . . . . . . Parts Fried . | . . . . . . . . Impact Corruptions . | . . . . . . . . Robots Melted . | . . . . . . . . Combat Hostiles . | . . . . . . . . Parts Melted . | . . . . . . . . Heat Transferred 1641 | . 450 325 866 . . . . Parts Sabotaged . | . . . . . . . . Parts Stolen . | . . . . . . . . Parts Stripped . | . . . . . . . . Power Chain Reactions . | . . . . . . . . Missiles Intercepted . | . . . . . . . . Alert | -11 -10 -9 -8 -7 -7 -7 -6 ------- Run | Scr Mat Mat Mat Fac Low Low Fac Peak Influence 288 | . 245 288 276 288 . . 15 Initial 121 | . . 103 121 58 . . . Average 126 | . 134 188 132 149 . . 1 Maximum Alert Level 1 | . 1 1 1 1 . . . Low Security (%) 74 | 100 73 61 74 66 . . 100 Level 1 25 | . 26 38 25 34 . . . Level 2 . | . . . . . . . . Level 3 . | . . . . . . . . Level 4 . | . . . . . . . . Level 5 . | . . . . . . . . High Security . | . . . . . . . . Max Security . | . . . . . . . . Squads Dispatched 9 | . 3 1 2 3 . . . Investigation 5 | . 1 1 1 2 . . . Extermination 1 | . . . . 1 . . . Reinforcement 3 | . 2 . 1 . . . . Assault . | . . . . . . . . Garrison . | . . . . . . . . Intercept . | . . . . . . . . Construction Impeded . | . . . . . . . . Haulers Reinforced . | . . . . . . . . Stealth | -11 -10 -9 -8 -7 -7 -7 -6 --------- Run | Scr Mat Mat Mat Fac Low Low Fac Distress Signals 4 | . . 1 2 1 . . . Communications Jammed . | . . . . . . . . Distress Signals . | . . . . . . . . Times Spotted 54 | . 11 9 17 15 1 . 1 Peak Tracking Total 7 | . 3 4 7 4 1 . 1 Tactical Retreats 3 | . . . . 3 . . . Traps | -11 -10 -9 -8 -7 -7 -7 -6 ------- Run | Scr Mat Mat Mat Fac Low Low Fac Traps Triggered 4 | . 1 1 1 1 . . . Indirectly . | . . . . . . . . Trap Hack Attempts . | . . . . . . . . Triggered . | . . . . . . . . Disarmed . | . . . . . . . . Reprogrammed . | . . . . . . . . Reused . | . . . . . . . . Traps Extracted . | . . . . . . . . Installed . | . . . . . . . . Triggered . | . . . . . . . . Machines | -11 -10 -9 -8 -7 -7 -7 -6 ---------- Run | Scr Mat Mat Mat Fac Low Low Fac Machines Disabled 7 | . 1 . 6 . . . . Max in Single Turn 3 | . 1 . 3 . . . . Machines Sabotaged . | . . . . . . . . Garrisons Compromised . | . . . . . . . . Overloaded Fab Kills . | . . . . . . . . Fab Network Shutdowns . | . . . . . . . . Hacking | -11 -10 -9 -8 -7 -7 -7 -6 --------- Run | Scr Mat Mat Mat Fac Low Low Fac Machines Accessed 11 | . 2 1 2 4 . . 2 Terminals 6 | . 2 1 1 1 . . 1 Fabricators 1 | . . . . 1 . . . Repair Stations 2 | . . . . 1 . . 1 Recycling Units 1 | . . . . 1 . . . Scanalyzers 1 | . . . 1 . . . . Garrison Access . | . . . . . . . . Total Hacks 23 | . 4 1 7 8 . . 3 Successful 11 | . 2 1 5 1 . . 2 Failed 12 | . 2 . 2 7 . . 1 Catastrophic 2 | . 1 . . 1 . . . Database Lockouts . | . . . . . . . . Manual 4 | . 2 . . 2 . . . Terminals 11 | . 4 1 2 3 . . 1 Fabricators 1 | . . . . 1 . . . Repair Stations 4 | . . . . 2 . . 2 Recycling Units 2 | . . . . 2 . . . Scanalyzers 5 | . . . 5 . . . . Garrison Access . | . . . . . . . . Terminal Hacks 4 | . 2 1 . 1 . . . Level Access Points 1 | . 1 . . . . . . Alert Level 1 | . . . . 1 . . . Locate Traps 1 | . 1 . . . . . . Hauler Manifests 1 | . . 1 . . . . . Fabricator Hacks . | . . . . . . . . Repair Station Hacks 2 | . . . . . . . 2 Scan Component 1 | . . . . . . . 1 Repair 1 | . . . . . . . 1 Recycling Unit Hacks . | . . . . . . . . Scanalyzer 5 | . . . 5 . . . . Insert Component 2 | . . . 2 . . . . Analyze 3 | . . . 3 . . . . Garrison Access Hacks . | . . . . . . . . Unauthorized Hacks . | . . . . . . . . Terminals . | . . . . . . . . Fabricators . | . . . . . . . . Repair Stations . | . . . . . . . . Recycling Units . | . . . . . . . . Scanalyzers . | . . . . . . . . Garrison Access . | . . . . . . . . Data Cores Recovered . | . . . . . . . . Used . | . . . . . . . . Hacking Detections 9 | . 1 . 2 4 . . 2 Full Trace Events 1 | . . . . 1 . . . Feedback Events . | . . . . . . . . Feedback Blocked . | . . . . . . . . Robot Schematics Acquired . | . . . . . . . . Robots Built . | . . . . . . . . Matter . | . . . . . . . . Time . | . . . . . . . . Total Robot Build Rating . | . . . . . . . . Part Schematics Acquired 1 | . . . 1 . . . . Parts Built . | . . . . . . . . Matter . | . . . . . . . . Time . | . . . . . . . . Total Part Build Rating . | . . . . . . . . Parts Repaired 1 | . . . . . . . 1 Time 16 | . . . . . . . 16 Parts Recycled . | . . . . . . . . Recycled Matter . | . . . . . . . . Retrieved Matter . | . . . . . . . . Retrieved Components . | . . . . . . . . Parts Scanalyzed 1 | . . . 1 . . . . Part Schematics Acquired 1 | . . . 1 . . . . Parts Damaged . | . . . . . . . . Bothacking | -11 -10 -9 -8 -7 -7 -7 -6 ------------ Run | Scr Mat Mat Mat Fac Low Low Fac Used RIF Installer . | . . . . . . . . Robots Hacked . | . . . . . . . . Non-combat . | . . . . . . . . Combat . | . . . . . . . . Robot Hacks Applied . | . . . . . . . . Relay Couplers Released . | . . . . . . . . Robots Rewired . | . . . . . . . . Allies Hacked . | . . . . . . . . Hacks Repelled . | . . . . . . . . Allies | -11 -10 -9 -8 -7 -7 -7 -6 -------- Run | Scr Mat Mat Mat Fac Low Low Fac Total Allies . | . . . . . . . . Largest Group . | . . . . . . . . Highest-Rated Group . | . . . . . . . . Highest-Rated Ally . | . . . . . . . . Total Orders . | . . . . . . . . Ally Attacks . | . . . . . . . . Total Damage . | . . . . . . . . Kills . | . . . . . . . . Allies Corrupted . | . . . . . . . . Allies Melted . | . . . . . . . . Intel | -11 -10 -9 -8 -7 -7 -7 -6 ------- Run | Scr Mat Mat Mat Fac Low Low Fac Robot Analysis Total . | . . . . . . . . Derelict Logs Recovered . | . . . . . . . . Drone Launches . | . . . . . . . . Drone Recoveries . | . . . . . . . . Exploration | -11 -10 -9 -8 -7 -7 -7 -6 ------------- Run | Scr Mat Mat Mat Fac Low Low Fac Turns Passed 2834 | 70 299 257 909 550 498 32 219 Spaces Moved 1954 | 48 160 124 395 742 324 21 140 Core 19 | 5 . . 6 . . . 8 Treads 762 | . 68 124 301 49 220 . . Legs 135 | 43 92 . . . . . . Wheels 18 | . . . . 18 . . . Hover 554 | . . . 61 236 104 21 132 Flight 466 | . . . 27 439 . . . Fastest Speed 34 | 50 120 160 34 37 96 160 50 Average Speed 113 | 116 137 160 158 56 146 160 136 Slowest Speed 500 | 150 160 160 500 170 170 160 160 Overloaded Moves . | . . . . . . . . Propulsion Burnouts . | . . . . . . . . Robots Hopped 5 | . . . 5 . . . . Cave-ins Triggered . | . . . . . . . . Exploration Rate (%) 21 | 4 43 18 29 16 56 5 4 Regions Visited 7 Branch Regions 2 Pre-discovered Areas . | . . . . . . . . Known Exits Taken 1 | . 1 . . . . . . Unknown Exits Taken 6 | 1 . 1 1 1 1 1 . Scrap Searched . | . . . . . . . . Spaces Dug . | . . . . . . . . Terrain Destroyed 16 | . . . 16 . . . . Melee . | . . . . . . . . Projectile . | . . . . . . . . AOE 16 | . . . 16 . . . . Terrain Rammed . | . . . . . . . . Walls Destroyed . | . . . . . . . . Machines Disabled . | . . . . . . . . Actions | -11 -10 -9 -8 -7 -7 -7 -6 --------- Run | Scr Mat Mat Mat Fac Low Low Fac Total 2386 | 59 192 146 602 862 339 20 166 Wait 256 | . 1 4 131 89 10 . 21 Move 1939 | 47 159 123 386 741 323 20 140 Hop 3 | . . . 3 . . . . Pick Up 9 | 6 . . 3 . . . . Fast Attach 32 | 6 1 1 13 8 . . 3 Attach 6 | . . . 3 3 . . . Detach 9 | . . . 4 4 . . 1 Swap 7 | . 3 . 2 2 . . . Drop 15 | . 4 . 5 6 . . . Fire 84 | . 24 18 41 . . . 1 Melee 26 | . . . 11 9 6 . . Ram . | . . . . . . . . Kick . | . . . . . . . . Crush . | . . . . . . . . Escape Stasis . | . . . . . . . . Rewire . | . . . . . . . . Trap . | . . . . . . . . Miscellaneous . | . . . . . . . . Route ------- -11/Scrapyard -10/Materials (discovered 3 exits: *Mat x3) -9/Materials -8/Materials -7/Factory -7/Lower Caves -7/Lower Caves -6/Factory History --------- Turn | Location | Event 25 | -11/Scrapyard | Discovered new exit (range 15) 71 | -11/Scrapyard | Entered Materials 306 | -10/Materials | Build established: Mutant 335 | -10/Materials | Identified exit to Materials 370 | -10/Materials | Entered another Materials area 370 | -9/Materials | Evolved 2 slots: Propulsion x1, Utility x1 603 | -9/Materials | Discovered new exit (range 16) 627 | -9/Materials | Entered another Materials area 627 | -8/Materials | Evolved 2 slots: Power x1, Propulsion x1 847 | -8/Materials | Lost 3 parts (2n1w) 1414 | -8/Materials | Lost 4 parts (2p1n1w) 1530 | -8/Materials | Discovered new exit (range 11) 1536 | -8/Materials | Entered Factory 1536 | -7/Factory | Evolved 2 slots: Propulsion x1, Utility x1 2067 | -7/Factory | Discovered new exit (range 15) 2086 | -7/Factory | Entered Lower Caves 2158 | -7/Lower Caves | Spotted B-75 Beast 2571 | -7/Lower Caves | Discovered new exit (range 9) 2584 | -7/Lower Caves | Entered another Lower Caves area 2589 | -7/Lower Caves | Discovered new exit (range 17) 2616 | -7/Lower Caves | Entered Factory 2616 | -6/Factory | Evolved 2 slots: Propulsion x1, Utility x1 2664 | -6/Factory | Repaired Imp. Hover Unit 2689 | -6/Factory | Spotted B-75 Beast 2835 | -6/Factory | Self-destructed Last Messages --------------- 02685_ K-01 Serf cleans the Construction Platform. 02725_ Acquired Remote Datajack. 02775_ Knocked back. 02789_ Xenon Bombardment Thruster destroyed. 02795_ Knocked back. 02798_ Construction Platform disabled. 02800_ U-05 Engineer builds a Wall. 02806_ U-05 Engineer lays Concrete. 02808_ Connecting with Terminal... 02808_ Arm. Treads destroyed. 02811_ U-05 Engineer builds a Wall. 02816_ U-05 Engineer destroyed. 02816_ Terminal disabled. 02825_ U-05 Engineer builds a Wall. 02828_ Hvy. Ion Engine destroyed. 02828_ Imp. Hover Unit destroyed. 02828_ Critical hit. 02828_ Remote Datajack destroyed. 02833_ Acquired Imp. Thermal Generator. 02833_ U-05 Engineer builds a Wall. Map ----- +----------------------------------------------------+ | ???????????????????????????????# ## ### | | ??????????????#########+##############+### #?? | | ????????????? #?? | | ????????????? #?? | | ????????????? !! #?? | | ???????????? !! #?? | | ???????????? !! #?? | | ??????????? ##############?? | | ??????????? || #??????????????? | | ??????????? | ##??????????????? | | ???????????? """"""" ###?????????????? | | ??????????????????"""" #?????????????? | | ??????????????????""""" #?????????????? | | ???????????? """"""" = BB###?????????????? | | ??????????? BB#???????????????? | | ??????????? """"""" ^ ! #???????????????? | | ?????????? """"""" % #???????????????? | | ?????????? """"""" "#???????????????? | | ?????????? """"""" "#???????????????? | | ??????????? #???????????????? | | ???????????? #???????????????? | | ?????????????# #???????????????? | | ?????????????# #???????????????? | | ?????????????? " "" !! #???????????????? | | ?????????????+ "R"" !! !! #???????????????? | | ?????????????# """ @ #???????????????? | | ?????????????# #???????????????? | | ?????????????# #???????????????? | | ?????????????# ###;#######u#######???????????? | | ?????????????# ???##?# #???????????? | | ?????????????# ?????????# #???????????? | | ????????????????????????# #???????????? | | ????????????????????????# """"" #???????????? | | ????????????????????????# """"" #???????????? | | ????????????????????????# """ #???????????? | | ????????????????????????# #???????????? | | ????????????????????????# """ #???????????? | | ??????????????????????????""" #???????????? | | ????????????????????????????" #???????????? | | ??????????????????????????? #???????????? | | ??????????????????????????? #???????????? | | ???????????????????????????###########???????????? | | ?????????????????????????????????????????????????? | | ?????????????????????????????????????????????????? | | ?????????????????????????????????????????????????? | | ?????????????????????????????????????????????????? | | ?????????????????????????????????????????????????? | | ?????????????????????????????????????????????????? | | ?????????????????????????????????????????????????? | | ?????????????????????????????????????????????????? | +----------------------------------------------------+ Best States ------------- Heat Dissipation 37 Energy Generation 15 Energy Capacity 280 Matter Stores 300 Matter Capacity 300 Sight Range 18 Robot Scan Range 10 Terrain Scan Density 10 Evasion (%) 63 Recoil Reduction 3 Offensive Hacking 10 Item Schematics ----------------- Aerolev Unit | -8/Materials | Scanalyzed Robot Schematics ------------------ None Fabricated ------------ Nothing Alien Tech Used ----------------- None Achievements -------------- None Challenges ------------ None Game ------ Seed AluminumThunderBuckler Manual? 0 Play Time 00:54:06 Cumulative 124.3 hours Start 2020.11.24 @ 17:47:58 End 2020.11.25 @ 03:58:15 Sessions 11 Manual Loads 0 Difficulty Rogue Special Mode Halloween2020/ForbiddenLore Game No. 84 Rogue 26 Adventurer 21 Explorer 37 Win Type - Total 6 Types 6/0/0/0/0/0/0/0/0 Lore% 47 Gallery% 70 Achievement% 57 Wizard Run 0 Options --------- ASCII 1 Keyboard 0 Movement Mouse Keybinds 0 Fullscreen 2 Font 18/Terminus Map View 76x50 Tactical HUD 1 Map Filters NONE Filters NONE Steam 1 RUN: 01d23246-2442-41e4-b7cc-a9cdfaa95e85